bitfinex-derivatives/quotes_ETHF0:USTF0_20241228
["timestamp","ask_amount","ask_price","bid_price","bid_amount"]
[1735356243547,0.29971,3341.4,3341.2,1.48372]
[1735356244548,7.94279788,3341.5,3341.3,0.29971]
[1735356245243,7.94279788,3341.5,3341.2,1.184]
[1735356245549,7.94279788,3341.5,3341.4,0.29971]
[1735356246346,7.64309788,3341.5,3341.4,0.29971]
[1735356247447,4.1116,3341.5,3341.4,0.29971]
[1735356249651,0.9038,3341.5,3341.4,0.29971]
[1735356252857,0.9038,3341.5,3341.3,2.57441728]
[1735356253058,1.2035,3341.5,3341.3,2.57441728]
[1735356253247,4.1116,3341.5,3341.0,2.27470728]
[1735356253448,4.1116,3341.5,3341.0,3.45870728]
[1735356253654,0.29972,3341.2,3341.0,3.75844728]
[1735356254152,0.861,3341.1,3341.0,3.75844728]
[1735356256660,4.0688,3341.1,3340.7,2.27470728]
[1735356256855,0.29976,3340.8,3340.7,2.27470728]
[1735356257558,1.7945,3341.0,3340.4,7.26168652]
[1735356257863,3.50758,3340.6,3340.4,6.96189652]
[1735356258059,3.50758,3340.6,3340.4,2.27470728]
[1735356258258,0.8438,3340.5,3340.4,2.27470728]
[1735356264567,1.7498,3340.5,3340.4,2.27470728]
[1735356265964,2.04959,3340.5,3340.1,2.57452728]
[1735356266164,0.8577,3340.4,3340.2,0.29981]
[1735356267470,0.8577,3340.4,3340.1,2.27470728]
[1735356267963,0.8577,3340.4,3340.2,0.29981]
[1735356269166,0.8577,3340.4,3340.3,0.2998]
[1735356269566,3.21037326,3340.4,3340.3,0.2998]
[1735356270583,0.8577,3340.4,3340.3,0.2998]
[1735356273786,0.2998,3340.3,3340.0,8.90242809]
[1735356274080,0.2998,3340.3,3339.9,6.41530419]
[1735356274478,0.8577,3340.4,3339.9,4.93146419]
[1735356274682,0.29983,3340.0,3339.9,4.69275772]
[1735356275682,0.29985,3339.9,3339.6,0.29986]
[1735356275881,0.8965,3339.8,3339.6,0.29986]
[1735356277486,0.8965,3339.8,3339.5,2.27470728]
[1735356277679,0.8965,3339.8,3339.5,2.57457728]
[1735356278283,0.8965,3339.8,3339.6,0.29987]
[1735356280585,1.19635,3339.8,3339.5,2.57457728]
[1735356280781,0.8965,3339.8,3339.5,2.57457728]
[1735356281085,1.19635,3339.8,3339.5,2.57457728]
[1735356281688,0.8965,3339.8,3339.5,2.57457728]
[1735356282188,0.8965,3339.8,3339.6,0.29986]
[1735356285191,0.8965,3339.8,3339.1,7.90055772]
[1735356285398,0.29987,3339.6,3339.3,0.29989]
[1735356286294,0.29987,3339.6,3339.1,6.66650728]
[1735356286499,0.29987,3339.6,3339.2,0.2999]
[1735356286793,3.2078,3339.5,3339.0,2.27470728]
[1735356287098,1.23499,3339.4,3339.1,0.29991]
[1735356287295,2.11169,3339.4,3339.1,0.29991]
[1735356287890,2.11169,3339.4,3339.0,2.27470728]
[1735356288196,2.11169,3339.4,3339.1,0.29991]
[1735356288197,1.8118,3339.4,3339.1,0.29991]
[1735356288586,2.11169,3339.4,3339.1,0.29991]
[1735356288792,1.8118,3339.4,3339.1,0.29991]
[1735356289398,1.8118,3339.4,3339.0,2.27470728]
[1735356289586,1.8118,3339.4,3339.2,0.2999]
[1735356289993,1.8118,3339.4,3339.1,0.29991]
[1735356290599,1.8118,3339.4,3339.2,0.2999]
[1735356293604,0.8997,3339.3,3339.2,0.2999]
[1735356295505,0.9351,3339.4,3339.3,0.29989]
[1735356295906,3.2078,3339.5,3339.4,0.29988]
[1735356307217,0.29988,3339.4,3339.1,0.29991]
[1735356307515,0.29991,3339.2,3339.0,2.27470728]
[1735356307907,2.109,3339.3,3339.0,2.57462728]
[1735356309211,4.46167326,3339.3,3339.0,2.57462728]
[1735356309510,0.2999,3339.2,3339.0,2.57462728]
[1735356310913,0.2999,3339.2,3339.0,2.27470728]
[1735356312217,2.65257326,3339.2,3339.0,2.57462728]
[1735356312418,0.29991,3339.1,3338.8,0.29993]
[1735356312620,0.29993,3339.0,3338.8,0.29993]
[1735356312815,0.907,3338.9,3338.8,0.29993]
[1735356315119,0.907,3338.9,3338.4,5.48250728]
[1735356315314,0.29997,3338.4,3338.3,4.69275772]
[1735356315623,0.29997,3338.4,3338.3,5.1616663]
[1735356315820,1.18907,3338.4,3338.3,5.1616663]
[1735356316320,0.8891,3338.4,3338.3,4.69275772]
[1735356316721,0.8891,3338.4,3338.3,0.29998]
[1735356316914,0.8891,3338.4,3338.3,0.76888693]
[1735356318123,0.8891,3338.4,3338.3,0.29998]
[1735356321321,3.2078,3338.5,3338.4,0.29997]
[1735356321515,2.35267326,3338.7,3338.6,0.29996]
[1735356321825,2.35267326,3338.7,3338.6,1.37811512]
[1735356322027,2.35267326,3338.7,3338.6,1.84693371]
[1735356322225,2.35267326,3338.7,3338.6,2.20273371]
[1735356323119,0.8796,3339.0,3338.6,1.90277371]
[1735356323320,0.8796,3339.0,3338.9,1.37808512]
[1735356323824,2.35267326,3339.2,3338.9,1.37808512]
[1735356323825,2.35267326,3339.2,3339.1,0.29991]
[1735356324024,2.35267326,3339.2,3339.1,1.37806512]
[1735356324527,2.35267326,3339.3,3339.2,0.2999]
[1735356325724,3.2078,3339.4,3339.2,2.27725174]
[1735356326030,3.2078,3339.4,3339.3,0.29989]
[1735356327722,4.98977326,3339.5,3339.3,0.29989]
[1735356328031,8.19757326,3339.5,3339.3,0.29989]
[1735356329523,8.19757326,3339.5,3339.4,0.29988]
[1735356330331,5.8449,3339.5,3339.4,0.29988]
[1735356331632,9.37639788,3339.5,3339.4,0.29988]
[1735356332434,9.37639788,3339.5,3339.2,2.27725174]
[1735356332620,9.37639788,3339.5,3339.3,0.29989]
[1735356333028,6.16859788,3339.5,3339.3,0.29989]
[1735356333332,9.37639788,3339.5,3339.3,0.29989]
[1735356333635,3.53149788,3339.4,3339.3,0.29989]
[1735356337041,3.53149788,3339.4,3339.3,0.7686371]
[1735356337349,2.35616588,3339.4,3339.3,0.7686371]
[1735356338940,2.35616588,3339.9,3339.8,0.29985]
[1735356339136,2.35616588,3339.9,3339.7,1.184]
[1735356339436,2.35616588,3339.9,3339.7,1.48385]
[1735356340839,4.06506588,3340.0,3339.7,1.48385]
[1735356341136,4.06506588,3340.0,3339.8,0.29985]
[1735356342137,4.06506588,3340.0,3339.7,1.184]
[1735356342436,2.1023105,3340.0,3339.9,0.29984]
[1735356343342,3.2078,3340.3,3339.8,2.63265174]
[1735356343535,3.2078,3340.3,3340.2,2.57706174]
[1735356348838,0.8861,3340.4,3340.2,2.27725174]
[1735356349142,0.8861,3340.4,3340.3,0.2998]
[1735356350344,0.8861,3340.4,3340.2,2.27725174]
[1735356350652,0.29982,3340.2,3339.9,3.46125174]
[1735356350944,0.29982,3340.2,3339.9,3.76109174]
[1735356351141,0.8948,3340.3,3340.0,0.29983]
[1735356351142,1.19461,3340.3,3340.0,0.29983]
[1735356351335,1.19461,3340.3,3339.9,3.46125174]
[1735356351336,0.8948,3340.3,3339.9,3.46125174]
[1735356351538,0.8948,3340.3,3340.2,0.29981]
[1735356353239,0.8948,3340.3,3339.9,3.46125174]
[1735356353537,0.8948,3340.3,3340.0,1.48383]
[1735356353936,0.8948,3340.3,3340.1,0.29982]
[1735356358546,1.19461,3340.3,3340.0,1.48383]
[1735356358941,0.8948,3340.3,3340.0,1.48383]
[1735356359142,0.8948,3340.3,3340.0,1.184]
[1735356359338,0.8948,3340.3,3340.2,2.57706174]
[1735356361150,0.8948,3340.3,3340.2,2.27725174]
[1735356361345,0.8948,3340.3,3340.1,0.29982]
[1735356361546,0.8948,3340.3,3340.2,0.29981]
[1735356366449,0.8948,3340.3,3340.2,0.76845846]
[1735356366851,0.8948,3340.3,3340.2,0.29981]
[1735356367753,0.8948,3340.3,3340.2,1.84586842]
[1735356372454,0.8948,3340.3,3340.2,1.37722189]
[1735356372656,0.8948,3340.3,3340.2,1.84587301]
[1735356382961,4.42629788,3340.3,3340.2,6.54544731]
[1735356385357,0.8948,3340.3,3340.2,6.54544731]
[1735356386666,0.8948,3340.3,3340.2,11.93221192]
[1735356387559,0.8948,3340.3,3340.2,11.4635608]
[1735356387759,0.8948,3340.3,3340.2,7.2326194]
[1735356388658,0.8948,3340.3,3340.2,6.15520751]
[1735356388857,0.8948,3340.3,3340.2,13.22231367]
[1735356390969,0.8948,3340.3,3340.2,12.75368077]
[1735356391270,0.8948,3340.3,3340.2,14.29971557]
[1735356394372,0.8948,3340.3,3340.2,7.23260941]
[1735356397171,0.8948,3340.3,3340.2,11.94533134]
[1735356398672,4.71175948,3340.3,3340.2,6.93345168]
[1735356398867,4.71175948,3340.3,3340.2,8.55665168]
[1735356399269,0.55352109,3340.3,3340.2,13.55665168]
[1735356399464,5.87686337,3340.5,3340.2,13.25684168]
[1735356399674,5.87686337,3340.5,3340.4,5.66241378]
[1735356399879,7.05371988,3341.0,3340.9,0.29975]
[1735356400181,7.05371988,3341.0,3340.9,4.10619669]
[1735356400479,3.53784543,3341.0,3340.9,4.10619669]
[1735356401578,3.53784543,3341.0,3340.9,3.0287848]
[1735356401976,3.53784543,3341.2,3341.1,0.29973]
[1735356402167,3.53784543,3341.2,3341.1,1.37714189]
[1735356403178,9.51714543,3341.3,3341.2,0.29972]
[1735356404485,5.9793,3341.3,3341.2,0.29972]
[1735356404986,2.7715,3341.3,3341.2,0.29972]
[1735356413303,3.2078,3341.8,3341.1,1.07741189]
[1735356413498,3.2078,3341.8,3341.7,1.37709189]
[1735356414609,6.0148,3341.8,3341.7,1.37709189]
[1735356419308,6.0148,3341.8,3341.7,2.56009189]
[1735356420709,5.1184,3341.8,3341.7,2.56009189]
[1735356420911,6.0077,3341.8,3341.7,2.56009189]
[1735356421214,6.0077,3341.8,3341.3,3.2078]
[1735356421409,6.0077,3341.8,3341.7,1.07741189]
[1735356421714,6.0077,3341.8,3341.7,1.37709189]
[1735356422119,6.0077,3341.8,3341.7,0.29968]
[1735356422321,6.0077,3341.8,3341.7,1.37709189]
[1735356422616,6.0077,3341.8,3341.7,1.07741189]
[1735356423012,6.0077,3341.8,3341.7,1.37709189]
[1735356423518,6.0077,3341.8,3341.7,1.07741189]
[1735356423819,6.30737,3341.8,3341.7,1.07741189]
[1735356424519,6.0077,3341.8,3341.7,1.07741189]
[1735356425515,6.0077,3341.8,3341.7,1.37709189]
[1735356428617,6.0077,3341.8,3341.7,1.84550687]
[1735356435315,6.0077,3341.8,3341.7,0.46841498]
[1735356435316,6.30737,3341.8,3341.7,0.46841498]
[1735356435516,6.0077,3341.8,3341.3,4.70274843]
[1735356435726,0.29971,3341.4,3341.3,5.78016032]
[1735356436327,0.29971,3341.4,3341.3,4.70274843]
[1735356436529,0.29971,3341.4,3341.3,3.22824843]
[1735356437219,10.29472543,3341.8,3341.2,1.07741189]
[1735356437426,0.29971,3341.3,3341.2,1.07741189]
[1735356437821,0.29971,3341.3,3341.0,0.29974]
[1735356438023,1.8846,3341.2,3341.0,0.29974]
[1735356439626,0.9391,3341.1,3341.0,0.29974]
[1735356440331,0.9391,3341.1,3340.9,2.27490425]
[1735356440632,0.9391,3341.1,3340.9,2.57465425]
[1735356441527,0.9391,3341.1,3341.0,0.29974]
[1735356443334,0.9391,3341.1,3340.9,2.27490425]
[1735356443335,1.8846,3341.2,3341.1,0.29973]
[1735356445340,1.8846,3341.2,3341.0,0.29974]
[1735356447130,2.18432,3341.2,3340.9,2.57465425]
[1735356447531,1.8846,3341.2,3341.0,0.29973]
[1735356447731,1.8846,3341.2,3340.9,2.27490425]
[1735356448940,1.8846,3341.2,3341.0,0.46849728]
[1735356449340,1.8846,3341.2,3341.1,0.29973]
[1735356453943,0.9178,3341.2,3341.1,0.29973]
[1735356454339,0.9178,3341.2,3341.1,0.76820332]
[1735356455546,0.9178,3341.2,3341.1,6.37451546]
[1735356456637,0.9178,3341.2,3341.1,13.43218722]
[1735356457849,1.8386,3341.4,3341.1,13.43218722]
[1735356457850,0.9497,3341.4,3341.3,0.29971]
[1735356458041,0.9044,3341.6,3341.5,0.2997]
[1735356458243,5.33784543,3341.6,3341.5,1.37630079]
[1735356459650,1.8,3341.6,3341.5,1.37630079]
[1735356465050,5.33784543,3341.6,3341.5,1.37630079]
[1735356467448,5.33784543,3341.6,3341.5,1.07660079]
[1735356467749,5.33784543,3341.6,3341.5,1.37630079]
[1735356468457,1.8,3341.6,3341.5,1.37630079]
[1735356477153,1.8,3341.6,3341.3,1.182]
[1735356477455,0.29971,3341.3,3341.2,5.58857176]
[1735356478051,0.29971,3341.3,3341.1,1.07660079]
[1735356478252,0.9165,3341.2,3341.1,1.07660079]
[1735356478555,0.9165,3341.2,3341.1,1.37633079]
[1735356480252,0.9165,3341.2,3341.1,1.07660079]
[1735356480758,5.61406082,3341.2,3341.1,1.37633079]
[1735356481154,5.61406082,3341.2,3341.1,1.07660079]
[1735356481456,5.61406082,3341.2,3340.9,1.07660079]
[1735356481660,5.61406082,3341.2,3340.5,9.41022902]
[1735356481661,0.29977,3340.7,3340.5,9.41022902]
[1735356481860,2.99428,3340.6,3340.5,9.41022902]
[1735356482062,2.99428,3340.6,3340.5,6.47202902]
[1735356482362,2.99428,3340.6,3340.5,3.58292902]
[1735356483364,2.6945,3340.6,3340.2,1.07660079]
[1735356483759,0.29979,3340.5,3340.2,1.07660079]
[1735356483953,0.29979,3340.5,3340.4,1.07660079]
[1735356484354,2.99428,3340.6,3340.4,1.07660079]
[1735356484755,8.56876044,3340.6,3340.4,1.07660079]
[1735356485656,8.56876044,3340.6,3340.3,0.2998]
[1735356485864,4.70936221,3340.5,3340.2,2.27592208]
[1735356486060,4.70936221,3340.5,3340.2,2.57573208]
[1735356486660,4.70936221,3340.5,3340.3,0.2998]
[1735356487163,2.35405791,3340.5,3340.3,0.2998]
[1735356488760,5.04855791,3340.6,3340.3,0.2998]
[1735356489667,5.34833791,3340.6,3340.3,0.2998]
[1735356489866,5.34833791,3340.6,3340.2,2.57573208]
[1735356490567,5.04855791,3340.6,3340.2,2.27592208]
[1735356490767,0.29979,3340.5,3340.2,2.57573208]
[1735356492665,5.04855791,3340.6,3340.3,0.2998]
[1735356492968,5.04855791,3340.6,3340.3,1.2477]
[1735356493868,2.6945,3340.6,3340.3,1.2477]
[1735356494571,2.99428,3340.6,3340.3,0.9479]
[1735356495068,2.99428,3340.6,3340.3,1.2477]
[1735356496060,2.6945,3340.6,3340.3,1.2477]
[1735356498174,3.2078,3340.4,3340.3,1.2477]
[1735356498470,3.2078,3340.4,3340.3,0.9479]
[1735356502874,3.2078,3340.4,3340.3,1.2477]
[1735356504180,2.99428,3340.6,3340.3,1.2477]
[1735356504375,6.20208,3340.6,3340.3,1.2477]
[1735356505577,5.9023,3340.6,3340.3,0.9479]
[1735356505779,5.9023,3340.6,3340.4,1.37719463]
[1735356506775,3.2078,3340.6,3340.5,0.29979]
[1735356507079,3.2078,3340.6,3340.5,1.21839]
[1735356512278,3.2078,3340.6,3340.5,1.68698653]
[1735356513981,3.2078,3340.6,3340.5,1.21839]
[1735356517284,0.29981,3340.3,3340.1,0.29982]
[1735356517482,0.2998,3340.3,3340.2,1.07740463]
[1735356517688,0.29983,3340.0,3339.9,1.07740463]
[1735356518186,0.29983,3340.0,3339.9,1.54607803]
[1735356518885,2.16723,3340.0,3339.9,0.4686734]
[1735356519281,0.29985,3339.8,3339.7,1.07740463]
[1735356519789,0.29985,3339.8,3339.7,1.54612929]
[1735356520487,0.29985,3339.8,3339.7,1.07740463]
[1735356521382,3.50765,3339.8,3339.7,1.07740463]
[1735356523588,7.03873687,3339.8,3339.7,1.07740463]
[1735356523781,7.03873687,3339.8,3339.5,0.9447]
[1735356523782,0.29986,3339.7,3339.5,0.9447]
[1735356523982,7.03873687,3339.8,3339.5,2.32197463]
[1735356524982,2.35502927,3339.6,3339.5,2.32197463]
[1735356529388,2.35502927,3339.6,3339.5,1.07740463]
[1735356529891,3.32532927,3339.6,3339.5,1.07740463]
[1735356530884,0.9703,3339.6,3339.5,1.07740463]
[1735356532088,0.9703,3339.6,3339.4,0.9029]
[1735356532089,0.29988,3339.5,3339.4,0.9029]
[1735356532388,1.23388,3339.5,3339.3,1.07740463]
[1735356533294,0.934,3339.5,3339.3,1.07740463]
[1735356534684,3.32532927,3339.6,3339.3,1.07740463]
[1735356534889,3.32532927,3339.6,3339.5,1.37728463]
[1735356535490,0.9703,3339.6,3339.5,1.37728463]
[1735356536890,2.35502927,3339.7,3339.5,1.37728463]
[1735356537196,6.53972927,3339.8,3339.6,0.9579]
[1735356537492,6.53972927,3339.8,3339.7,1.07740463]
[1735356538389,5.56282927,3339.8,3339.7,1.37726463]
[1735356540191,5.56282927,3339.8,3339.7,1.07740463]
[1735356540496,5.86267927,3339.8,3339.7,1.37726463]
[1735356540794,5.56282927,3339.8,3339.7,1.37726463]
[1735356541999,3.2078,3339.8,3339.7,1.37726463]
[1735356542894,3.50765,3339.8,3339.7,1.37726463]
[1735356543702,3.2078,3339.8,3339.7,1.37726463]
[1735356546001,3.2078,3339.8,3339.7,1.07740463]
[1735356546199,0.2999,3339.3,3339.1,0.29991]
[1735356546502,0.2999,3339.3,3339.2,0.2999]
[1735356546898,0.29989,3339.4,3339.2,0.2999]
[1735356547704,3.2078,3339.3,3339.2,0.2999]
[1735356548000,3.2078,3339.3,3339.1,1.37731463]
[1735356549401,3.2078,3339.3,3339.1,1.07740463]
[1735356549698,2.35262905,3339.4,3339.3,0.29989]
[1735356549996,7.05371988,3340.8,3339.3,1.92104855]
[1735356550196,7.05371988,3340.8,3340.7,0.29977]
[1735356551697,7.05371988,3340.8,3340.7,2.57486109]
[1735356551906,3.2078,3341.3,3341.0,0.29974]
[1735356552103,7.05371988,3342.0,3341.9,0.29966]
[1735356552399,3.63110683,3342.0,3341.9,6.96455109]
[1735356553107,3.8951,3343.5,3341.9,6.66489109]
[1735356553308,0.29956,3343.1,3342.5,3.2078]
[1735356553606,0.29956,3343.1,3342.5,3.50741]
[1735356554004,0.29956,3343.1,3342.5,3.2078]
[1735356554511,0.29956,3343.1,3342.7,0.29959]
[1735356555395,3.8951,3343.5,3342.7,0.29959]
[1735356555604,0.29955,3343.2,3342.8,0.29958]
[1735356556105,3.8951,3343.5,3342.5,5.48289109]
[1735356556296,0.29954,3343.3,3342.9,3.50737]
[1735356556904,0.29954,3343.3,3342.9,3.2078]
[1735356557104,0.29954,3343.3,3342.9,3.50737]
[1735356558307,0.9591,3343.5,3342.9,3.50737]
[1735356558608,0.29953,3343.4,3342.9,3.50737]
[1735356561411,0.29953,3343.4,3342.9,3.2078]
[1735356561711,0.29954,3343.3,3342.9,3.50737]
[1735356562911,0.9591,3343.5,3342.9,3.50737]
[1735356563311,0.29954,3343.3,3342.9,3.50737]
[1735356563812,1.0053,3343.4,3342.9,3.2078]
[1735356564014,0.29953,3343.3,3342.9,3.50737]
[1735356564719,0.29953,3343.3,3343.0,0.29956]
[1735356565812,0.29953,3343.3,3342.9,3.50737]
[1735356566013,0.29955,3343.2,3342.9,3.50737]
[1735356570227,0.29955,3343.2,3342.9,0.29957]
[1735356571516,0.29955,3343.2,3342.7,3.2078]
[1735356571722,0.29955,3343.2,3342.9,0.29956]
[1735356573025,0.29956,3343.1,3342.9,0.29956]
[1735356576826,0.29961,3342.5,3342.3,3.50742]
[1735356577031,3.2078,3343.0,3342.3,3.2078]
[1735356577234,0.29961,3342.5,3342.3,3.2078]
[1735356577432,3.2078,3343.0,3342.1,0.29963]
[1735356577627,0.29963,3342.3,3342.1,0.29963]
[1735356578127,1.24113,3342.3,3342.1,0.29963]
[1735356578733,0.29963,3342.2,3342.0,0.29965]
[1735356579732,0.29963,3342.2,3341.9,3.50745]
[1735356581425,0.29963,3342.2,3341.9,3.2078]
[1735356581628,0.29963,3342.2,3342.0,0.29965]
[1735356581933,0.29964,3342.1,3341.9,3.50746]
[1735356582734,0.29964,3342.2,3342.0,0.29965]
[1735356583432,0.29964,3342.2,3341.9,3.2078]
[1735356583433,0.29965,3342.1,3341.9,3.50746]
[1735356584833,0.9415,3342.3,3341.9,3.2078]
[1735356585036,0.29964,3342.2,3341.9,3.50745]
[1735356586738,0.29964,3342.2,3342.0,0.29965]
[1735356587333,0.2996,3342.6,3342.4,0.29961]
[1735356587639,0.2996,3342.6,3342.5,0.29961]
[1735356587841,0.2996,3342.6,3342.4,0.29961]
[1735356588238,1.9378,3342.9,3342.4,0.29961]
[1735356588532,0.29961,3342.5,3342.4,0.29961]
[1735356591237,0.2996,3342.6,3342.4,0.29961]
[1735356592137,1.9378,3342.9,3342.4,0.29961]
[1735356592526,0.2996,3342.6,3342.4,0.29961]
[1735356592726,1.9378,3342.9,3342.3,3.2078]
[1735356592930,2.23738,3342.9,3342.8,0.29958]
[1735356593131,4.28023349,3343.2,3342.8,0.29958]
[1735356593332,0.29955,3343.2,3343.1,0.29955]
[1735356593535,0.9229,3343.4,3342.7,3.2078]
[1735356593835,0.29957,3343.0,3342.8,0.29958]
[1735356595141,0.9229,3343.4,3342.8,0.29958]
[1735356595440,0.29957,3342.9,3342.8,0.29958]
[1735356596043,0.29957,3342.9,3342.7,3.50739]
[1735356597345,0.29957,3342.9,3342.7,0.29959]
[1735356598536,0.9229,3343.4,3342.7,0.29959]
[1735356599149,0.29958,3342.8,3342.7,0.29959]
[1735356599743,0.2996,3342.6,3342.5,4.66909813]
[1735356600343,0.977,3342.6,3342.4,4.66909813]
[1735356600541,0.29961,3342.5,3342.4,4.66909813]
[1735356601540,0.29962,3342.3,3342.2,3.2078]
[1735356605148,0.29962,3342.3,3342.0,3.50745]
[1735356605648,0.29962,3342.3,3342.1,0.29964]
[1735356606739,0.977,3342.6,3342.1,0.29964]
[1735356606941,0.29962,3342.4,3342.1,0.29964]
[1735356610346,6.79746738,3342.6,3342.0,3.2078]
[1735356610558,5.82046738,3342.6,3342.5,3.50741]
[1735356611053,1.8974,3342.7,3342.5,3.50741]
[1735356611054,1.8974,3342.7,3342.5,3.2078]
[1735356611257,1.8974,3342.7,3342.6,0.2996]
[1735356611551,1.8974,3342.7,3342.3,0.29962]
[1735356611851,0.2996,3342.6,3342.3,0.29962]
[1735356612047,1.8974,3342.7,3342.5,3.5074]
[1735356612245,1.8974,3342.7,3342.6,0.2996]
[1735356612644,0.29956,3343.1,3342.5,5.48289109]
[1735356612846,0.29956,3343.1,3342.5,6.66689109]
[1735356613050,5.88394944,3343.0,3342.9,0.29957]
[1735356613651,5.88394944,3343.0,3342.9,3.50737]
[1735356614252,0.29956,3343.1,3343.0,0.29956]
[1735356614647,1.9027,3343.3,3342.9,3.2078]
[1735356614848,1.9027,3343.3,3343.1,0.29955]
[1735356615049,2.20224,3343.3,3342.9,3.2078]
[1735356616155,1.9027,3343.3,3342.9,3.2078]
[1735356616355,0.9092,3343.3,3343.2,0.29954]
[1735356617752,0.29952,3343.5,3343.1,2.27509109]
[1735356617958,0.29952,3343.5,3343.4,0.29953]
[1735356618154,0.29952,3343.5,3343.3,0.29953]
[1735356618354,0.29953,3343.4,3343.3,3.2078]
[1735356619152,0.29953,3343.4,3343.3,3.50733]
[1735356620658,1.28923,3343.4,3343.3,3.50733]
[1735356622561,0.9897,3343.4,3343.3,3.50733]
[1735356623156,0.9897,3343.4,3343.3,3.2078]
[1735356623357,1.28923,3343.4,3343.3,3.2078]
[1735356623757,1.28923,3343.4,3343.3,3.50733]
[1735356623954,0.9897,3343.4,3343.3,3.50733]
[1735356624762,1.25682,3343.5,3343.3,3.50733]
[1735356627469,0.29953,3343.4,3343.3,3.50733]
[1735356628464,0.9573,3343.5,3343.3,3.50733]
[1735356628772,1.25682,3343.5,3343.3,3.50733]
[1735356629671,1.25682,3343.5,3343.3,3.2078]
[1735356629875,1.25682,3343.5,3343.3,3.50733]
[1735356630169,1.25682,3343.5,3343.3,3.2078]
[1735356630373,1.25682,3343.5,3343.3,3.50733]
[1735356632270,1.25682,3343.5,3343.4,0.29953]
[1735356633271,0.9573,3343.5,3343.4,0.29953]
[1735356637573,1.0123,3343.7,3343.4,2.27509109]
[1735356637780,0.9079,3343.8,3343.4,2.27509109]
[1735356637971,0.9079,3343.8,3343.7,0.2995]
[1735356640573,0.9079,3343.8,3343.7,2.57459109]
[1735356643783,0.9079,3343.8,3343.7,1.37464055]
[1735356644078,2.28126,3344.2,3344.0,0.29947]
[1735356644382,1.0199,3344.1,3344.0,3.50727]
[1735356646785,1.31936,3344.1,3344.0,4.58241055]
[1735356647473,1.0199,3344.1,3344.0,4.58241055]
[1735356648285,1.31936,3344.1,3344.0,3.2078]
[1735356650084,1.32159191,3344.1,3344.0,3.2078]
[1735356652188,1.32159191,3344.1,3344.0,3.50727]
[1735356652784,1.32159191,3344.1,3344.0,3.2078]
[1735356654588,0.29947,3344.0,3343.9,1.37462055]
[1735356658984,0.29947,3344.0,3343.9,1.07514055]
[1735356660182,0.29947,3344.0,3343.9,1.37462055]
[1735356661489,0.29947,3344.0,3343.9,1.07514055]
[1735356662188,0.29947,3344.0,3343.9,1.37462055]
[1735356662789,0.29947,3344.0,3343.9,1.07514055]
[1735356663095,0.29949,3343.8,3343.7,3.2078]
[1735356663298,0.29949,3343.8,3343.7,4.58244055]
[1735356665381,1.02213191,3344.1,3343.7,4.58244055]
[1735356665587,0.29949,3343.9,3343.7,3.5073]
[1735356665890,0.29949,3343.9,3343.8,1.07514055]
[1735356666090,0.29949,3343.8,3343.7,3.5073]
[1735356666293,0.29949,3343.8,3343.7,4.58244055]
[1735356667499,0.29949,3343.8,3343.7,4.28294055]
[1735356668488,0.29949,3343.8,3343.7,4.58244055]
[1735356668988,0.29949,3343.8,3343.7,3.2078]
[1735356670186,1.07514055,3343.9,3343.3,4.66909813]
[1735356670387,0.29953,3343.4,3343.3,1.07514055]
[1735356671091,5.88777846,3343.8,3343.5,0.29952]
[1735356671291,5.88777846,3343.8,3343.7,4.58244055]
[1735356671995,0.952,3344.0,3343.9,0.29948]
[1735356672394,0.952,3344.0,3343.9,1.37462055]
[1735356673794,0.00223191,3344.1,3343.9,1.07514055]
[1735356673999,0.98803191,3344.1,3344.0,0.29947]
[1735356674694,0.98803191,3344.1,3343.7,4.3878]
[1735356674899,0.29949,3343.9,3343.8,0.29949]
[1735356675400,0.29948,3343.9,3343.7,5.76243055]
[1735356675592,0.9385,3343.8,3343.7,4.58243055]
[1735356675795,0.9385,3343.8,3343.7,4.28294055]
[1735356675995,0.2995,3343.7,3343.6,4.66909813]
[1735356676494,0.29952,3343.5,3343.4,1.07514055]
[1735356676993,0.9306,3343.6,3343.2,0.29954]
[1735356677197,0.29955,3343.1,3343.0,3.2078]
[1735356677398,0.29955,3343.1,3343.0,4.28294055]
[1735356677796,0.29955,3343.1,3343.0,3.2078]
[1735356678197,0.9859,3343.3,3342.8,1.07514055]
[1735356678398,0.29957,3342.9,3342.8,1.07514055]
[1735356679496,0.29957,3342.9,3342.8,1.37472055]
[1735356679802,0.29957,3342.9,3342.8,0.29958]
[1735356680101,0.29957,3342.9,3342.6,2.27267224]
[1735356680305,1.0632,3342.8,3342.7,0.29958]
[1735356684620,0.2996,3342.6,3342.4,11.93244064]
[1735356684909,1.0787,3342.5,3342.4,11.93244064]
[1735356685810,1.37831,3342.5,3342.4,3.2078]
[1735356686117,1.0787,3342.5,3342.4,3.2078]
[1735356686319,1.37831,3342.5,3342.4,3.2078]
[1735356687013,1.37831,3342.5,3342.3,0.29962]
[1735356687918,0.29962,3342.4,3342.2,0.29963]
[1735356688215,1.0787,3342.5,3342.2,0.29963]
[1735356688413,1.37831,3342.5,3342.3,0.29962]
[1735356690115,1.0787,3342.5,3342.3,0.29962]
[1735356690419,1.0787,3342.5,3342.1,1.0081]
[1735356690619,1.0787,3342.5,3342.4,0.29962]
[1735356693117,1.0239,3342.7,3342.3,2.27267224]
[1735356693317,1.0632,3342.8,3342.6,2.27267224]
[1735356693626,1.0632,3342.8,3342.7,0.29959]
[1735356694123,2.40428,3342.8,3342.6,0.29959]
[1735356694514,0.29959,3342.7,3342.4,0.29961]
[1735356694720,2.1047,3342.8,3342.4,0.29961]
[1735356694919,2.1047,3342.8,3342.3,5.48047224]
[1735356694920,0.29961,3342.5,3342.3,3.50742]
[1735356695222,1.3751,3342.6,3342.4,0.29961]
[1735356697122,1.3751,3342.6,3342.3,3.2078]
[1735356697123,0.29961,3342.5,3342.3,3.2078]
[1735356697624,0.29961,3342.5,3342.2,0.29963]
[1735356698332,0.29961,3342.5,3342.3,0.29962]
[1735356699331,1.0755,3342.6,3342.0,2.27267224]